bitfinex-derivatives/quotes_SOLF0:USTF0_20250624
["timestamp","ask_amount","ask_price","bid_price","bid_amount"]
[1750773083004,6.9495,143.82,143.79,6.9505]
[1750773083308,6.9495,143.82,143.77,14.83329952]
[1750773083309,6.9498,143.81,143.78,6.951]
[1750773083504,6.9498,143.81,143.77,14.83329952]
[1750773083703,42.44,143.83,143.77,12.42039952]
[1750773084402,6.9507,143.8,143.77,12.42039952]
[1750773084798,42.44,143.83,143.77,12.42039952]
[1750773085002,42.44,143.83,143.77,19.37189952]
[1750773085714,42.44,143.83,143.77,12.42039952]
[1750773086410,6.9504,143.8,143.77,12.42039952]
[1750773086605,42.44,143.83,143.77,12.42039952]
[1750773086805,42.44,143.83,143.79,6.9507]
[1750773087014,42.44,143.83,143.77,12.42039952]
[1750773087318,49.3891,143.83,143.8,6.9502]
[1750773087516,42.44,143.83,143.8,6.9502]
[1750773087714,42.44,143.83,143.77,2.4321]
[1750773088014,42.44,143.83,143.77,14.85249952]
[1750773089410,6.95,143.81,143.78,6.9511]
[1750773089611,6.95,143.81,143.77,14.85249952]
[1750773089812,42.44,143.83,143.77,14.85249952]
[1750773090017,6.9496,143.82,143.79,6.9507]
[1750773090320,6.9496,143.82,143.77,14.85249952]
[1750773090524,42.44,143.83,143.77,14.85249952]
[1750773090703,4.589,143.89,143.77,21.49839947]
[1750773091016,54.52667552,143.88,143.78,2.3496]
[1750773091209,6.9481,143.85,143.82,6.949]
[1750773091711,6.9481,143.85,143.83,6.9487]
[1750773092219,6.9481,143.85,143.79,6.64589995]
[1750773092420,6.9481,143.85,143.79,19.06629947]
[1750773092716,6.9476,143.86,143.79,19.06629947]
[1750773093019,49.08589995,143.88,143.79,19.06629947]
[1750773093219,5.44436379,143.87,143.79,19.06629947]
[1750773093418,5.44436379,143.86,143.81,6.64589995]
[1750773093715,49.08589995,143.88,143.79,12.42039952]
[1750773093905,6.9485,143.84,143.79,12.42039952]
[1750773094107,49.08589995,143.88,143.79,12.42039952]
[1750773094416,5.54615063,143.87,143.79,12.42039952]
[1750773094616,6.9481,143.85,143.82,6.9493]
[1750773094812,5.54615063,143.84,143.82,6.9493]
[1750773095117,49.08589995,143.88,143.82,12.42039952]
[1750773095319,5.55464914,143.87,143.82,12.42039952]
[1750773095519,6.9479,143.85,143.82,12.42039952]
[1750773095820,5.55464914,143.84,143.83,6.9487]
[1750773096209,5.55464914,143.84,143.83,12.42039952]
[1750773096407,5.55464914,143.84,143.8,6.64589995]
[1750773096720,5.55464914,143.83,143.81,6.9498]
[1750773096909,4.88309422,143.87,143.8,19.06629947]
[1750773097216,6.9486,143.84,143.8,19.06629947]
[1750773097406,5.5721117,143.83,143.81,6.9495]
[1750773097602,6.9486,143.84,143.81,6.9495]
[1750773097816,5.57273967,143.83,143.81,12.42039952]
[1750773098017,42.44,143.88,143.82,6.9493]
[1750773098206,10.46082973,143.87,143.82,6.9493]
[1750773098409,6.9488,143.83,143.82,12.42039952]
[1750773098615,5.5737831,143.83,143.79,6.64589995]
[1750773098815,49.08589995,143.88,143.79,6.64589995]
[1750773098816,5.5737831,143.82,143.79,6.64589995]
[1750773099031,4.89315475,143.86,143.79,19.06629947]
[1750773099211,5.58385765,143.85,143.8,6.95]
[1750773099518,5.58385765,143.84,143.79,12.42039952]
[1750773099818,6.9487,143.84,143.81,6.9495]
[1750773100017,49.08589995,143.88,143.81,6.9495]
[1750773100214,5.42959597,143.87,143.81,12.42039952]
[1750773100416,10.33003193,143.86,143.81,12.42039952]
[1750773100612,5.42959597,143.85,143.81,12.42039952]
[1750773100921,5.42959597,143.84,143.81,19.36989952]
[1750773101121,6.64589995,143.87,143.81,19.36989952]
[1750773101324,10.33559368,143.86,143.81,19.36989952]
[1750773101522,5.43249206,143.85,143.81,19.36989952]
[1750773101714,6.64589995,143.87,143.81,19.36989952]
[1750773101715,12.38119206,143.84,143.81,19.36989952]
[1750773101915,42.44,143.88,143.81,12.42039952]
[1750773102112,10.33411727,143.87,143.81,12.42039952]
[1750773102318,10.33411727,143.86,143.82,6.949]
[1750773102526,5.43280266,143.85,143.81,12.42039952]
[1750773102826,6.9481,143.85,143.82,6.9489]
[1750773103327,6.9481,143.85,143.82,12.42039952]
[1750773103926,5.45258209,143.84,143.82,12.42039952]
[1750773104123,6.9476,143.86,143.83,6.9484]
[1750773104324,5.45192892,143.85,143.83,6.9484]
[1750773104526,5.45192892,143.84,143.83,19.36879952]
[1750773105623,5.45413439,143.84,143.83,12.42039952]
[1750773105817,19.56757433,143.99,143.83,56.5658278]
[1750773106022,4.9350722,143.98,143.95,7.3658278]
[1750773106225,4.9350722,143.97,143.93,7.3658278]
[1750773106428,15.87833606,144.03,143.93,7.3658278]
[1750773106627,10.61017534,144.02,143.94,7.36171434]
[1750773106827,4.9353978,144.01,143.96,7.36171434]
[1750773107031,4.9353978,144.0,143.96,7.36171434]
[1750773107224,42.24,144.04,143.99,6.9409]
[1750773107423,20.84,144.08,143.96,19.78211386]
[1750773107424,4.93803255,144.03,143.98,7.36171434]
[1750773107629,4.93803255,144.02,143.98,12.42039952]
[1750773107923,2.66664396,144.05,143.98,12.42039952]
[1750773108127,2.66664396,144.04,143.98,12.42039952]
[1750773108426,6.9389,144.04,143.98,12.42039952]
[1750773108625,2.3497,144.05,143.98,12.42039952]
[1750773108828,2.68131083,144.04,143.99,6.9408]
[1750773109015,2.68131083,144.04,143.98,12.42039952]
[1750773109016,2.6809736,144.03,143.98,12.42039952]
[1750773109223,2.6809736,144.02,143.95,42.24]
[1750773109523,7.36171434,144.03,143.95,42.24]
[1750773109524,7.36171434,144.03,143.97,6.9418]
[1750773109715,2.68113623,144.02,143.95,12.42039952]
[1750773109923,7.36171434,144.03,143.97,6.9419]
[1750773110128,7.36171434,144.03,143.95,12.42039952]
[1750773110923,6.9413,143.99,143.96,6.9422]
[1750773111329,7.36171434,144.01,143.93,2.2932]
[1750773111528,7.36171434,144.01,143.93,12.42039952]
[1750773111728,6.9423,143.97,143.94,6.9434]
[1750773112125,10.0323807,144.01,143.94,12.42039952]
[1750773112529,6.9428,143.96,143.94,12.42039952]
[1750773112721,10.0323807,144.01,143.94,12.42039952]
[1750773112923,10.04776093,144.01,143.94,12.42039952]
[1750773113830,7.36171434,144.01,143.94,12.42039952]
[1750773114430,7.36171434,144.01,143.93,6.9437]
[1750773114431,7.36171434,143.99,143.91,6.9448]
[1750773114735,7.36171434,143.95,143.86,7.36171434]
[1750773114924,7.36171434,143.95,143.87,14.65159952]
[1750773114925,49.58171434,143.95,143.87,14.65159952]
[1750773115124,49.58171434,143.95,143.88,6.9461]
[1750773115427,42.22,143.95,143.87,14.65159952]
[1750773115933,6.9454,143.91,143.87,14.65159952]
[1750773116430,6.9454,143.91,143.88,6.9461]
[1750773116636,6.9454,143.91,143.82,49.58171434]
[1750773116637,7.36171434,143.91,143.82,49.58171434]
[1750773116824,7.36171434,143.89,143.82,12.42039952]
[1750773117127,7.36171434,143.87,143.8,6.6574]
[1750773117321,7.36171434,143.87,143.8,14.65979952]
[1750773117527,6.9496,143.82,143.8,12.42039952]
[1750773117723,49.58171434,143.85,143.8,12.42039952]
[1750773118125,6.9496,143.82,143.8,12.42039952]
[1750773118322,49.58171434,143.85,143.77,42.22]
[1750773118628,49.58171434,143.85,143.78,6.951]
[1750773119031,49.58171434,143.85,143.78,19.37139952]
[1750773119234,6.9488,143.83,143.79,6.9505]
[1750773119535,49.58171434,143.85,143.79,6.9505]
[1750773119831,49.58171434,143.85,143.79,19.37089952]
[1750773120026,49.58171434,143.85,143.79,12.42039952]
[1750773120528,7.36171434,143.83,143.76,6.9521]
[1750773120729,7.36171434,143.81,143.75,14.65979952]
[1750773120925,49.58171434,143.81,143.75,12.42039952]
[1750773121525,49.58171434,143.81,143.77,6.9517]
[1750773121727,42.22,143.81,143.77,6.9517]
[1750773121927,42.22,143.81,143.77,19.37209952]
[1750773122232,6.9503,143.8,143.77,12.42039952]
[1750773122736,6.9503,143.8,143.77,19.37209952]
[1750773122927,6.9503,143.8,143.77,12.42039952]
[1750773123131,42.22,143.81,143.77,12.42039952]
[1750773123329,49.58171434,143.81,143.72,42.22]
[1750773123630,49.58171434,143.81,143.72,54.64039952]
[1750773124227,6.9515,143.78,143.72,54.64039952]
[1750773124423,42.22,143.81,143.72,54.64039952]
[1750773124640,42.22,143.81,143.73,7.36171434]
[1750773124934,6.951,143.79,143.76,6.9521]
[1750773125341,7.36171434,143.8,143.76,12.42039952]
[1750773125838,6.9517,143.77,143.76,12.42039952]
[1750773126039,7.36171434,143.8,143.76,12.42039952]
[1750773126340,7.36171434,143.8,143.72,42.22]
[1750773126529,7.36171434,143.8,143.72,54.64039952]
[1750773127042,6.9526,143.76,143.73,6.9533]
[1750773127638,6.9526,143.76,143.73,19.37369952]
[1750773127835,6.9528,143.75,143.73,12.42039952]
[1750773128138,7.36171434,143.78,143.73,12.42039952]
[1750773128546,42.06,143.77,143.73,12.42039952]
[1750773129444,6.9531,143.74,143.73,12.42039952]
[1750773130135,7.36171434,143.74,143.63,42.06]
[1750773130337,7.36171434,143.72,143.67,14.83059952]
[1750773130534,6.9561,143.68,143.67,12.42039952]
[1750773131143,7.36171434,143.7,143.63,2.2587]
[1750773131349,7.36171434,143.7,143.63,14.67909952]
[1750773131642,6.9563,143.68,143.65,6.9572]
[1750773131833,42.06,143.72,143.63,14.67909952]
[1750773132034,6.956,143.69,143.65,6.9573]
[1750773132238,7.36171434,143.71,143.63,14.67909952]
[1750773132639,6.9568,143.67,143.63,14.67909952]
[1750773132942,42.08,143.68,143.63,14.67909952]
[1750773133345,6.957,143.67,143.64,6.958]
[1750773133843,49.0363,143.68,143.65,6.9574]
[1750773134040,42.08,143.71,143.65,12.42039952]
[1750773134235,49.44171434,143.73,143.65,12.42039952]
[1750773134436,6.9562,143.68,143.66,6.9566]
[1750773134640,6.9562,143.68,143.65,12.42039952]
[1750773134842,49.44171434,143.73,143.65,12.42039952]
[1750773135041,7.36171434,143.71,143.65,12.42039952]
[1750773135745,6.9568,143.67,143.65,12.42039952]
[1750773136142,42.08,143.69,143.65,12.42039952]
[1750773136450,49.44171434,143.69,143.65,12.42039952]
[1750773137545,42.08,143.69,143.65,12.42039952]
[1750773137947,42.08,143.69,143.66,6.9569]
[1750773138135,42.08,143.72,143.66,12.42039952]
[1750773138641,6.9549,143.71,143.68,6.9558]
[1750773138848,42.08,143.72,143.66,12.42039952]
[1750773139243,49.0345,143.72,143.69,6.9555]
[1750773139438,42.08,143.72,143.67,7.36171434]
[1750773139637,42.08,143.72,143.67,2.2535]
[1750773139840,42.08,143.72,143.67,14.67389952]
[1750773140040,42.08,143.72,143.67,12.42039952]
[1750773140641,42.08,143.72,143.63,4.5122]
[1750773140642,7.36171434,143.71,143.63,4.5122]
[1750773140844,7.36171434,143.71,143.64,6.9577]
[1750773141346,6.957,143.67,143.64,19.37809952]
[1750773141643,7.36171434,143.71,143.64,19.37809952]
[1750773141846,6.9569,143.67,143.64,19.37809952]
[1750773142034,42.08,143.69,143.64,12.42039952]
[1750773142641,7.36171434,143.68,143.59,46.6632]
[1750773142843,7.36171434,143.68,143.59,17.00359952]
[1750773143045,7.36171434,143.67,143.59,17.00359952]
[1750773143240,6.9373,143.68,143.59,17.00359952]
[1750773143447,6.9588,143.63,143.59,17.00359952]
[1750773143641,6.9588,143.63,143.61,6.9594]
[1750773143943,42.08,143.65,143.59,17.00359952]
[1750773144145,42.08,143.65,143.48,42.08]
[1750773144146,7.36171434,143.6,143.48,42.08]
[1750773144451,6.9629,143.54,143.49,4.5258]
[1750773144653,6.9629,143.54,143.51,6.9642]
[1750773144840,6.9625,143.55,143.49,16.94619952]
[1750773145340,42.1,143.56,143.49,16.94619952]
[1750773146038,49.46171434,143.56,143.49,16.94619952]
[1750773146435,49.46171434,143.56,143.49,23.91109952]
[1750773146639,49.46171434,143.56,143.49,16.94619952]
[1750773147149,42.1,143.56,143.49,12.42039952]
[1750773147353,49.46171434,143.56,143.49,12.42039952]
[1750773147545,6.9634,143.53,143.5,6.9645]
[1750773147742,49.46171434,143.56,143.49,12.42039952]
[1750773148049,6.9641,143.52,143.49,12.42039952]
[1750773148251,49.0841,143.52,143.49,12.42039952]
[1750773148751,6.9646,143.51,143.49,12.42039952]
[1750773149043,42.12,143.52,143.49,12.42039952]
[1750773150256,6.9648,143.5,143.49,12.42039952]
[1750773150551,49.48171434,143.52,143.35,13.944]
[1750773150855,7.36171434,143.48,143.39,7.36171434]
[1750773151051,42.12,143.47,143.39,19.78211386]
[1750773151243,6.9676,143.45,143.41,6.9689]
[1750773151549,42.12,143.47,143.41,6.9689]
[1750773151745,42.12,143.47,143.41,12.42039952]
[1750773151947,42.12,143.47,143.41,19.78211386]
[1750773152344,49.0865,143.47,143.41,19.78211386]
[1750773152744,42.12,143.47,143.41,19.78211386]
[1750773153452,6.9668,143.46,143.43,6.9679]
[1750773153652,42.12,143.47,143.43,6.9679]
[1750773153947,6.9668,143.46,143.43,12.42039952]
[1750773154148,42.12,143.47,143.43,12.42039952]
[1750773154541,6.967,143.46,143.43,12.42039952]
[1750773155156,6.9673,143.45,143.43,12.42039952]
[1750773155553,42.12,143.47,143.43,12.42039952]
[1750773156955,6.9675,143.45,143.43,12.42039952]
[1750773157454,6.9677,143.44,143.43,12.42039952]
[1750773157653,42.12,143.47,143.43,12.42039952]
[1750773158654,6.9677,143.45,143.39,7.36171434]
[1750773158855,42.12,143.47,143.39,19.78211386]
[1750773159055,6.9687,143.43,143.39,12.42039952]
[1750773159255,49.48171434,143.47,143.39,12.42039952]
[1750773159456,49.48171434,143.47,143.4,6.9696]
[1750773159656,49.48171434,143.47,143.4,12.42039952]
[1750773160449,49.48171434,143.47,143.4,19.38999952]
[1750773160649,42.12,143.47,143.41,7.36171434]
[1750773160858,41.96,143.48,143.41,7.36171434]
[1750773161057,601.36,143.52,143.43,7.36171434]
[1750773161245,643.32,143.52,143.44,2.2134]
[1750773161449,7.36171434,143.51,143.45,4.5045]
[1750773161654,643.32,143.52,143.45,4.5045]
[1750773161853,643.32,143.52,143.45,24.28661386]
[1750773162657,6.9651,143.5,143.45,24.28661386]
[1750773162849,643.32,143.52,143.45,16.92489952]
[1750773163250,6.965,143.5,143.45,16.92489952]
[1750773163560,643.32,143.52,143.45,16.92489952]
[1750773163765,643.32,143.52,143.46,7.36171434]
[1750773163958,41.96,143.52,143.46,19.78211386]
[1750773164763,6.9643,143.51,143.46,19.78211386]
[1750773165056,41.96,143.52,143.46,19.78211386]
[1750773165357,41.96,143.52,143.49,6.965]
[1750773165558,41.96,143.52,143.49,12.42039952]
[1750773165752,41.96,143.52,143.51,6.9643]
[1750773165949,41.96,143.52,143.49,12.42039952]
[1750773166152,4.542,143.58,143.5,7.36171434]
[1750773166349,41.96,143.56,143.51,6.964]
[1750773166558,41.96,143.56,143.51,12.42039952]
[1750773166858,41.96,143.56,143.52,6.9635]
[1750773167060,41.96,143.56,143.51,12.42039952]
[1750773168258,41.96,143.59,143.51,12.42039952]
[1750773168461,49.32171434,143.59,143.51,12.42039952]
[1750773168660,6.9626,143.55,143.52,6.9635]
[1750773168865,49.32171434,143.59,143.51,12.42039952]
[1750773169049,7.36171434,143.58,143.51,12.42039952]
[1750773169249,41.96,143.59,143.51,19.78211386]
[1750773169455,41.96,143.59,143.52,2.248]
[1750773169666,6.962,143.56,143.53,6.9631]
[1750773169961,41.96,143.59,143.53,7.36171434]
[1750773170160,41.96,143.59,143.54,6.9628]
[1750773170361,41.96,143.59,143.54,19.38319952]
[1750773170663,6.9617,143.57,143.54,19.38319952]
[1750773170856,41.96,143.59,143.54,12.42039952]
[1750773171266,41.96,143.59,143.56,6.9615]
[1750773171561,41.96,143.59,143.54,12.42039952]
[1750773171761,6.9611,143.58,143.54,12.42039952]
[1750773171959,41.96,143.59,143.54,12.42039952]
[1750773172556,601.76,143.66,143.55,7.36171434]
[1750773172557,41.94,143.62,143.55,7.36171434]
[1750773172761,6.9587,143.63,143.57,7.36171434]
[1750773173155,41.94,143.64,143.57,19.78211386]
[1750773173354,41.94,143.64,143.59,7.36171434]
[1750773173764,6.9585,143.63,143.59,19.78211386]
[1750773174265,6.9585,143.63,143.6,6.9597]
[1750773174561,6.9585,143.63,143.6,19.38009952]
[1750773174862,6.959,143.62,143.6,12.42039952]
[1750773175063,41.94,143.64,143.6,12.42039952]
[1750773175455,41.94,143.64,143.59,7.36171434]
[1750773175456,41.94,143.64,143.56,41.94]
[1750773175655,41.94,143.64,143.56,54.36039952]
[1750773175955,41.94,143.64,143.59,6.9603]
[1750773176260,41.94,143.64,143.57,7.36171434]
[1750773176460,41.94,143.64,143.57,19.78211386]
[1750773176767,41.94,143.64,143.57,12.42039952]
[1750773177262,6.9596,143.61,143.58,6.9606]
[1750773177656,41.94,143.64,143.58,12.42039952]
[1750773178264,6.9592,143.62,143.59,14.32171434]
[1750773178565,41.94,143.64,143.59,7.36171434]
[1750773178762,6.9589,143.63,143.6,6.9597]
[1750773179567,41.94,143.64,143.59,19.78211386]
[1750773179859,41.94,143.64,143.59,12.42039952]
[1750773180064,6.9599,143.6,143.59,12.42039952]
[1750773180365,41.94,143.64,143.59,12.42039952]
[1750773180564,6.9599,143.6,143.59,12.42039952]
[1750773180754,41.94,143.64,143.59,12.42039952]
[1750773181162,6.9588,143.63,143.6,6.9599]
[1750773181360,6.9588,143.63,143.52,2.248]
[1750773181361,20.84,143.56,143.36,15.15621418]
[1750773181563,827.69051147,143.55,143.37,6.8013]
[1750773181764,7.39605281,143.54,143.4,6.66405866]
[1750773181962,6.66405866,143.51,143.42,6.66405866]
[1750773182163,6.9663,143.47,143.44,6.9673]
[1750773182369,41.92,143.5,143.41,6.66405866]
[1750773182869,6.9666,143.47,143.43,6.968]
[1750773183068,41.92,143.5,143.43,6.968]
[1750773183267,41.92,143.5,143.41,6.66405866]
[1750773183471,6.9671,143.46,143.41,13.63295866]
[1750773183768,41.92,143.5,143.43,6.66405866]
[1750773184156,612.52375866,143.55,143.45,6.66405866]
[1750773184362,41.94,143.54,143.47,6.66405866]
[1750773184861,6.66723873,143.57,143.48,6.66723873]
[1750773185170,41.94,143.56,143.46,7.1247]
[1750773185561,41.94,143.56,143.47,6.66723873]
[1750773185762,6.66723873,143.55,143.46,7.1247]
[1750773186970,11.8107033,143.55,143.46,7.1247]
[1750773187163,6.66723873,143.53,143.46,4.8103]
[1750773187470,6.66723873,143.51,143.43,6.66723873]
[1750773187871,6.9656,143.49,143.45,6.9669]
[1750773188769,6.9648,143.5,143.43,6.66723873]
[1750773188973,48.90723873,143.55,143.47,6.66723873]
[1750773189270,42.24,143.55,143.47,6.66723873]
[1750773189461,6.9631,143.54,143.48,2.2389]
[1750773189665,42.24,143.55,143.48,2.2389]
[1750773189866,6.9629,143.54,143.51,6.9639]
[1750773190072,6.9629,143.54,143.49,6.66723873]
[1750773190469,42.24,143.55,143.49,6.66723873]
[1750773190875,42.24,143.55,143.49,9.00713873]
[1750773191076,42.24,143.55,143.52,6.9635]
[1750773191877,42.24,143.55,143.49,2.3399]
[1750773192077,42.24,143.55,143.48,8.90613873]
[1750773192578,42.24,143.55,143.5,6.9645]
[1750773193079,6.9636,143.53,143.5,6.9645]
[1750773195172,6.9634,143.53,143.49,6.9652]
[1750773195479,42.24,143.55,143.49,6.9652]
[1750773195779,6.9637,143.53,143.49,6.9652]
[1750773195981,42.24,143.55,143.48,8.90613873]
[1750773196380,42.24,143.58,143.52,6.66723873]
[1750773196880,6.9613,143.58,143.52,6.66723873]
[1750773197081,42.24,143.59,143.54,6.66723873]
[1750773197281,42.24,143.59,143.56,6.9616]
[1750773197481,42.24,143.59,143.54,6.66723873]
[1750773197780,42.24,143.59,143.55,6.9621]
[1750773197971,42.24,143.59,143.54,6.66723873]
[1750773198890,49.2008,143.59,143.56,6.9618]
[1750773199080,49.2008,143.59,143.54,6.66723873]
[1750773199385,49.2008,143.59,143.56,6.9615]
[1750773201184,42.24,143.59,143.56,6.9615]
[1750773201483,42.24,143.59,143.54,6.66723873]
[1750773201986,49.2007,143.59,143.56,6.9617]
[1750773202186,49.2007,143.59,143.51,2.2443]
[1750773202187,42.24,143.59,143.52,6.66723873]
[1750773202579,6.9614,143.57,143.54,6.9626]
[1750773202782,42.24,143.59,143.52,6.66723873]
[1750773203083,49.2008,143.59,143.54,6.9628]
[1750773203288,643.8,143.62,143.54,6.66723873]
[1750773203483,6.6613685,143.55,143.38,13.9411]
[1750773203790,48.9833,143.54,143.43,6.6613685]
[1750773203982,42.24,143.53,143.43,6.6613685]
[1750773204287,42.24,143.53,143.44,6.6613685]
[1750773204888,6.9654,143.49,143.45,6.9672]
[1750773205276,42.24,143.53,143.44,6.6613685]
[1750773205480,6.9651,143.5,143.46,6.9664]
[1750773205890,6.9651,143.5,143.44,6.6613685]
[1750773206083,6.9653,143.49,143.44,6.6613685]
[1750773206291,6.9653,143.49,143.43,6.67218113]
[1750773206586,6.9653,143.49,143.46,6.9667]
[1750773207088,6.9649,143.5,143.47,6.9662]
[1750773207789,13.63628113,143.52,143.43,6.67218113]
[1750773207989,42.24,143.53,143.45,6.67218113]
[1750773208491,6.9638,143.52,143.49,6.965]
[1750773208692,6.9638,143.52,143.46,42.24]
[1750773208891,6.9646,143.51,143.48,6.9655]
[1750773209087,6.67218113,143.52,143.46,42.24]
[1750773209489,6.965,143.5,143.47,6.966]
[1750773209995,6.9649,143.5,143.48,6.9657]
[1750773210285,6.67218113,143.5,143.43,42.24]
[1750773210590,6.67218113,143.5,143.41,2.3579]
[1750773210793,6.67218113,143.48,143.41,2.3579]
[1750773211093,6.9677,143.44,143.42,6.9686]
[1750773211389,42.24,143.49,143.41,2.3579]
[1750773211593,42.24,143.49,143.41,9.03008113]
[1750773212095,44.444,143.52,143.43,6.67218113]
[1750773212487,42.24,143.52,143.44,42.24]
[1750773212687,42.24,143.52,143.44,44.509]
[1750773212887,6.9645,143.51,143.48,6.9655]
[1750773213184,42.24,143.52,143.45,6.67218113]
[1750773213393,6.9636,143.53,143.45,6.67218113]
[1750773213589,6.9636,143.53,143.45,9.01068113]
[1750773213990,46.7534,143.54,143.45,9.01068113]
[1750773215284,6.964,143.52,143.49,6.965]
[1750773216395,6.9637,143.53,143.5,6.9648]
[1750773216897,6.9638,143.52,143.5,6.9648]
[1750773217591,6.9638,143.52,143.49,6.965]
[1750773217793,44.5226,143.54,143.47,6.67218113]
[1750773218093,42.24,143.54,143.47,6.67218113]
[1750773218699,6.9636,143.53,143.49,6.9652]
[1750773218899,6.66963658,143.51,143.4,19.33527048]
[1750773219102,42.08,143.5,143.4,11.29753658]
[1750773219303,2.2685,143.56,143.46,6.67201646]
[1750773219603,15.13357597,143.6,143.5,6.67201646]
[1750773219604,48.75201646,143.6,143.5,6.67201646]
[1750773219802,6.9631,143.54,143.5,13.63641646]
[1750773219995,48.75201646,143.6,143.5,13.63641646]
[1750773220196,6.9634,143.53,143.5,13.63641646]
[1750773220596,6.9634,143.53,143.51,6.9642]
[1750773220796,6.9631,143.54,143.51,6.9642]
[1750773220996,6.9631,143.54,143.5,6.67201646]
[1750773221197,6.9631,143.54,143.51,6.9639]
[1750773221397,6.9625,143.55,143.5,6.67201646]
[1750773221604,2.4334,143.58,143.5,6.67201646]
[1750773221800,6.9631,143.54,143.51,6.9641]
[1750773221996,2.4334,143.58,143.51,6.9641]
[1750773222903,6.9633,143.54,143.51,6.9641]
[1750773223599,6.9626,143.55,143.5,6.67201646]
[1750773224199,6.9626,143.55,143.51,6.9639]
[1750773224397,6.963,143.54,143.51,6.9639]
[1750773224801,48.75201646,143.56,143.47,4.7395]
[1750773225000,48.75201646,143.56,143.47,2.329]
[1750773225598,6.9645,143.51,143.47,2.329]
[1750773225904,6.9645,143.51,143.48,6.9657]
[1750773226505,6.964,143.52,143.49,6.9653]
[1750773226705,42.08,143.56,143.49,6.9653]
[1750773226905,42.08,143.56,143.48,6.67201646]
[1750773227605,6.9643,143.51,143.48,6.67201646]
[1750773227904,42.08,143.56,143.48,6.67201646]
[1750773228312,6.9648,143.5,143.48,6.67201646]
[1750773228500,6.67201646,143.55,143.46,48.75201646]
[1750773228701,8.98281646,143.55,143.46,48.75201646]
[1750773229413,6.9662,143.47,143.46,42.08]
[1750773229602,6.67201646,143.53,143.44,6.67201646]
[1750773229803,6.9665,143.47,143.44,48.75201646]
[1750773230006,42.08,143.52,143.44,48.75201646]
[1750773230502,6.67201646,143.51,143.43,2.344]
[1750773230706,8.91591646,143.51,143.42,601.68]
[1750773231012,6.9679,143.44,143.42,601.68]
[1750773231312,6.9679,143.44,143.41,51.10991646]
[1750773232214,6.67201646,143.49,143.41,51.10991646]
[1750773232417,6.67201646,143.49,143.41,48.75201646]
[1750773232714,6.9686,143.43,143.41,48.75201646]
[1750773234106,6.9686,143.43,143.41,42.08]
[1750773234311,42.08,143.48,143.41,42.08]
[1750773234713,42.08,143.48,143.42,6.9686]
[1750773235220,6.9675,143.45,143.42,6.9686]
[1750773235621,42.08,143.48,143.41,49.0489]
[1750773235919,6.9675,143.45,143.41,49.0489]
[1750773236320,6.67201646,143.45,143.39,62.0]
[1750773236511,6.67201646,143.45,143.36,9.07391646]
[1750773236711,6.67201646,143.47,143.38,6.67201646]
[1750773237307,6.67201646,143.47,143.36,9.07391646]
[1750773237620,11.40151646,143.47,143.36,9.07391646]
[1750773238321,11.40151646,143.47,143.38,6.9703]
[1750773238713,6.9691,143.42,143.38,6.9703]
[1750773239014,11.40151646,143.47,143.39,6.9701]
[1750773239216,11.40151646,143.47,143.38,6.67201646]
[1750773239910,4.7295,143.47,143.39,6.67201646]
[1750773240319,6.9684,143.43,143.4,6.9693]
[1750773240631,4.7295,143.47,143.39,6.67201646]
[1750773240825,4.7295,143.47,143.4,6.9696]
[1750773241120,6.67201646,143.46,143.36,9.07391646]
[1750773241513,6.9691,143.42,143.36,9.07391646]
[1750773241720,4.7295,143.47,143.38,6.67201646]
[1750773242022,42.08,143.48,143.4,6.67201646]
[1750773242622,42.08,143.48,143.42,6.67201646]
[1750773243023,42.08,143.48,143.44,6.9676]
[1750773243320,646.1239,143.51,143.44,6.67201646]
[1750773243521,6.9651,143.5,143.47,6.966]
[1750773243730,42.1,143.51,143.46,6.67201646]
[1750773243936,42.1,143.54,143.46,6.67201646]
[1750773244224,42.1,143.56,143.5,6.67201646]
[1750773244625,6.9631,143.54,143.5,6.9644]